Cogmind - Beta 13 @@@ ROGUE MODE // 2024.04.05 @ 21:05:00 Player: arcadus Result: Destroyed by D-53 Grenadier with Mini Grenade Launcher Performance ------------- Evolutions (0) 0 Regions Visited (2) 400 Robots Destroyed (6) 30 Value Destroyed (116) 116 Prototype IDs (0) 0 Alien Tech Used (0) 0 Bonus (39) 39 TOTAL SCORE: 585 Bonus ------- Follower Combat Kills 39 Cogmind --------- Core Integrity 0/250 Matter 300/300 Energy 100/100 System Corruption 0% Temperature Cool (0) Movement Flying (40) Location -10/Mines Parts ------- > --- POWER (1) -------- (None) > --- PROPULSION (2) --- Flight Unit > --- UTILITY (2) ------ (None) > --- WEAPON (2) ------- (None) > --- INVENTORY (5) ---- Ion Engine Aluminum Leg Flight Unit Small Laser Peak State ------------ > --- POWER ------------ Light Ion Engine > --- PROPULSION ------- Aluminum Leg Aluminum Leg > --- UTILITY ---------- Large Storage Unit Seismic Detector > --- WEAPON ----------- Small Laser Assault Rifle > --- INVENTORY -------- Ion Engine Light Treads Light Treads Wheel Compact Wheel Flight Unit Flight Unit Flight Unit Small Storage Unit Small Laser [Rating: 8] Favorites ----------- Power Light Ion Engine Engine Light Ion Engine Propulsion Aluminum Leg Leg Aluminum Leg Flight Unit Flight Unit Utility Large Storage Unit Device Seismic Detector Storage Large Storage Unit Weapon Small Laser Energy Gun Small Laser Ballistic Gun Assault Rifle Build | -11 -10 -10 ------- Run | Yrd Mat Min Slots Evolved . | . . . Power . | . . . Propulsion . | . . . Utility . | . . . Weapon . | . . . Parts Attached 6 | . 3 3 Power . | . . . Engine . | . . . Core . | . . . Reactor . | . . . Propulsion 3 | . . 3 Treads . | . . . Leg . | . . . Wheel . | . . . Hover . | . . . Flight 3 | . . 3 Utility 3 | . 3 . Device 1 | . 1 . Storage 2 | . 2 . Processor . | . . . Hackware . | . . . Protection . | . . . Artifact . | . . . Weapon . | . . . Energy Gun . | . . . Energy Cannon . | . . . Ballistic Gun . | . . . Ballistic Cannon . | . . . Launcher . | . . . Special Weapon . | . . . Impact Weapon . | . . . Slashing Weapon . | . . . Piercing Weapon . | . . . Special Melee Weapon . | . . . Unidentified Prototypes . | . . . Parts Lost 6 | . . 6 Power 1 | . . 1 Propulsion 2 | . . 2 Utility 1 | . . 1 Weapon 2 | . . 2 Highest Loss Streak 3 | . . 3 To Critical Strikes . | . . . Average Slot Usage (%) 89 | . 91 85 Engine 14 | . 14 14 Leg 21 | . 28 10 Flight 7 | . . 17 Device 7 | . 6 9 Storage 12 | . 14 9 Energy Gun 14 | . 14 14 Ballistic Gun 12 | . 14 9 Naked Turns . | . . . Heaviest Build 27 | 11 27 27 Greatest Support 20 | 20 20 20 Greatest Overweight (x) 3 | . 1 3 Average Overweight (x) . | . . . Largest Inventory Capacity 15 | . 15 15 Average Capacity 12 | . 13 11 Most Carried 12 | . 8 12 Average Carried 7 | . 6 8 Final Capacity 15 | 8 15 5 Final Carried 7 | 6 7 4 Class Distribution -------------------- 100% | Mutant Dominant Class ---------------- Mutant | -10/Materials Mutant | -10/Mines Resources | -11 -10 -10 ----------- Run | Yrd Mat Min Matter Collected 299 | 200 . 99 Remotely . | . . . Salvage Created 145 | . . 145 Parts 15 | . . 15 Haulers Intercepted . | . . . Recyclers Shooed . | . . . Parts Field Recycled . | . . . Retrieved Matter . | . . . Parts Self-Destructed . | . . . Prevented . | . . . Kills | -11 -10 -10 ------- Run | Yrd Mat Min Combat Hostiles Destroyed 5 | . . 5 Guns 5 | . . 5 Classes Destroyed 3 | . . 3 Builder 1 | . . 1 Swarmer 3 | . . 3 Grunt 2 | . . 2 Best Kill Streak 4 | . . 4 Combat Bots Only 3 | . . 3 Max Kills in Single Turn 2 | . . 2 Gunslinging 1 | . . 1 Exploded . | . . . Melee . | . . . Uniques/NPCs Destroyed . | . . . Combat | -11 -10 -10 -------- Run | Yrd Mat Min Hostile Shots Fired 37 | . . 37 Missed 7 | . . 7 Damage Taken 655 | . . 655 Core 254 | . . 254 Absorbed by Shields . | . . . Core Remaining (%) 100 | 100 . . Volleys Fired 14 | . . 14 Largest 2 | . . 2 Hottest 60 | . . 60 Shots Fired 27 | . . 27 Gun 27 | . . 27 Cannon . | . . . Launcher . | . . . Special . | . . . Kinetic 13 | . . 13 Thermal 14 | . . 14 Explosive . | . . . Electromagnetic . | . . . Robot Hit Streak 9 | . . 9 Robot Miss Streak 2 | . . 2 Penetration Max . | . . . Secondary Targets 1 | . . 1 Max Gunslinging Chain 1 | . . 1 Shots Hit Robots 19 | . . 19 Core Hits 10 | . . 10 Critical Kills 1 | . . 1 Critical Parts Destroyed 1 | . . 1 Critical Strikes 2 | . . 2 Destroy 2 | . . 2 Melee Attacks . | . . . Impact . | . . . Slashing . | . . . Piercing . | . . . Sneak Attacks . | . . . Combat Hostiles . | . . . Follow-up Attacks . | . . . Damage Inflicted 251 | . . 251 Guns 251 | . . 251 Cannons . | . . . Explosions . | . . . Melee . | . . . Ramming . | . . . Kinetic 145 | . . 145 Thermal 106 | . . 106 Explosive . | . . . Electromagnetic . | . . . Impact . | . . . Slashing . | . . . Piercing . | . . . Highest Corruption . | . . . Average Corruption . | . . . Corruption Purged . | . . . Corruption Blocked . | . . . Overload Shots . | . . . Overflow Damage . | . . . Projectiles . | . . . Explosions . | . . . Melee . | . . . Knockbacks . | . . . Impact . | . . . Kinetic . | . . . Secondary . | . . . Self-Inflicted Damage . | . . . Shots . | . . . Rammed . | . . . Targets Rammed . | . . . Kicked . | . . . Crushed . | . . . Highest Temperature 99 | . . 99 Average Temperature 63 | . . 63 Received Heat Transfer 119 | . . 119 Siege Activations . | . . . Robots Corrupted . | . . . Combat Hostiles . | . . . Parts Fried . | . . . Impact Corruptions . | . . . Robots Melted . | . . . Combat Hostiles . | . . . Parts Melted . | . . . Heat Transferred 250 | . . 250 Parts Sabotaged . | . . . Parts Stolen . | . . . Parts Stripped . | . . . Power Chain Reactions . | . . . Alert | -11 -10 -10 ------- Run | Yrd Mat Min Peak Influence 179 | . . 179 Initial . | . . . Average 44 | . . 108 Maximum Alert Level . | . . . Low Security (%) 100 | . 100 100 Level 1 . | . . . Level 2 . | . . . Level 3 . | . . . Level 4 . | . . . Level 5 . | . . . High Security . | . . . Max Security . | . . . Squads Dispatched . | . . . Investigation . | . . . Extermination . | . . . Reinforcement . | . . . Assault . | . . . Garrison . | . . . Intercept . | . . . Searches Triggered . | . . . Construction Impeded . | . . . Haulers Reinforced . | . . . Active Scanning Responses . | . . . Cargo Convoy Interrupts . | . . . Stealth | -11 -10 -10 --------- Run | Yrd Mat Min Distress Signals . | . . . Communications Jammed . | . . . Distress Signals . | . . . Times Spotted 23 | . . 23 Peak Tracking Total 14 | . . 14 Tactical Retreats 1 | . . 1 Traps | -11 -10 -10 ------- Run | Yrd Mat Min Traps Triggered . | . . . Indirectly . | . . . Trap Hack Attempts . | . . . Triggered . | . . . Disarmed . | . . . Reprogrammed . | . . . Reused . | . . . Traps Extracted . | . . . Installed . | . . . Triggered . | . . . Machines | -11 -10 -10 ---------- Run | Yrd Mat Min Machines Disabled . | . . . Max in Single Turn . | . . . Machines Repaired . | . . . Machines Dismantled . | . . . Machines Sabotaged . | . . . Overloaded Fab Kills . | . . . Hacking | -11 -10 -10 --------- Run | Yrd Mat Min Machines Accessed 2 | . 1 1 Terminals 2 | . 1 1 Fabricators . | . . . Repair Stations . | . . . Recycling Units . | . . . Scanalyzers . | . . . Garrison Access . | . . . Total Hacks 4 | . 1 3 Successful 3 | . . 3 Failed 1 | . 1 . Catastrophic . | . . . Database Lockouts . | . . . Manual 2 | . . 2 Terminals 4 | . 1 3 Fabricators . | . . . Repair Stations . | . . . Recycling Units . | . . . Scanalyzers . | . . . Garrison Access . | . . . Terminal Hacks 3 | . . 3 Record 3 | . . 3 Fabricator Hacks . | . . . Repair Station Hacks . | . . . Recycling Unit Hacks . | . . . Scanalyzer . | . . . Garrison Access Hacks . | . . . Unauthorized Hacks . | . . . Terminals . | . . . Fabricators . | . . . Repair Stations . | . . . Recycling Units . | . . . Scanalyzers . | . . . Garrison Access . | . . . Data Cores Recovered . | . . . Used . | . . . Hacking Detections 2 | . 1 1 Full Trace Events 1 | . . 1 Feedback Events . | . . . Feedback Blocked . | . . . Robot Schematics Acquired . | . . . Robots Built . | . . . Authchips . | . . . Time . | . . . Total Robot Build Rating . | . . . Part Schematics Acquired . | . . . Parts Built . | . . . Authchips . | . . . Time . | . . . Total Part Build Rating . | . . . Parts Repaired . | . . . Time . | . . . Parts Recycled . | . . . Recycled Matter . | . . . Retrieved Matter . | . . . Retrieved Components . | . . . Parts Scanalyzed . | . . . Part Schematics Acquired . | . . . Parts Damaged . | . . . Bothacking | -11 -10 -10 ------------ Run | Yrd Mat Min Used RIF Installer . | . . . Robots Hacked . | . . . Non-combat . | . . . Combat . | . . . Robot Hacks Applied . | . . . Relay Couplers Released . | . . . Fabnet Peak Effective % . | . . . Robots Rewired . | . . . Allies Hacked . | . . . Hacks Repelled . | . . . Allies | -11 -10 -10 -------- Run | Yrd Mat Min Total Allies 3 | . . 3 Largest Group 3 | . . 3 Highest-Rated Group 40 | . . 40 Highest-Rated Ally 16 | . . 16 Total Orders 1 | . . 1 GUARD 1 | . . 1 Ally Attacks 7 | . . 7 Total Damage 74 | . . 74 Kills 1 | . . 1 Allies Corrupted . | . . . Allies Melted . | . . . Intel | -11 -10 -10 ------- Run | Yrd Mat Min Robot Analysis Total . | . . . Derelict Logs Recovered 1 | . . 1 Drone Launches . | . . . Drone Recoveries . | . . . Exploration | -11 -10 -10 ------------- Run | Yrd Mat Min Turns Passed 641 | . 380 261 Spaces Moved 488 | 1 216 271 Core . | . . . Treads . | . . . Legs 249 | 1 216 32 Wheels . | . . . Hover . | . . . Flight 239 | . . 239 Fastest Speed 37 | 120 120 37 Average Speed 112 | 120 161 72 Slowest Speed 277 | 120 190 277 Overloaded Moves . | . . . Propulsion Burnouts . | . . . Robots Hopped . | . . . Cave-ins Triggered . | . . . Exploration Rate (%) 30 | 1 32 58 Regions Visited 2 Branch Regions 1 Pre-discovered Areas . | . . . Known Exits Taken . | . . . Unknown Exits Taken 2 | 1 1 . Scrap Searched 1 | . . 1 Spaces Dug . | . . . Terrain Destroyed . | . . . Melee . | . . . Projectile . | . . . AOE . | . . . Terrain Rammed . | . . . Walls Destroyed . | . . . Machines Disabled . | . . . Actions | -11 -10 -10 --------- Run | Yrd Mat Min Total 556 | . 246 310 Wait 35 | . 26 9 Move 486 | . 215 271 Hop . | . . . Pick Up 7 | . 2 5 Fast Attach . | . . . Attach 2 | . 1 1 Detach . | . . . Swap 4 | . 2 2 Drop 8 | . . 8 Fire 14 | . . 14 Melee . | . . . Ram . | . . . Kick . | . . . Crush . | . . . Escape Stasis . | . . . Rewire . | . . . Trap . | . . . Miscellaneous . | . . . Route ------- -11/Scrapyard -10/Materials -10/Mines (discovered 1 exit: [*Mat]) History --------- Turn | Location | Event 1 | -11/Scrapyard | Discovered new exit (range 0) 1 | -11/Scrapyard | Entered Materials 310 | -10/Materials | Build established: Mutant 334 | -10/Materials | Discovered new exit (range 9) 381 | -10/Materials | Entered Mines 400 | -10/Mines | Discovered new exit (range 6) 546 | -10/Mines | Assembled infested the area 551 | -10/Mines | Assisted by a Guerilla fighting off Assembled 558 | -10/Mines | Core integrity fell below 50% 588 | -10/Mines | Lost 3 parts (1n1u1w) 607 | -10/Mines | Learned Materials non-interactive machine intel 607 | -10/Mines | Assisted by bots powering up and referring to "LRC-V3" 639 | -10/Mines | Core integrity fell below 20% 642 | -10/Mines | Destroyed by D-53 Grenadier with Mini Grenade Launcher Last Messages --------------- 00563_ as-15219 destroyed. 00578_ as-37289 destroyed. 00578_ T-07 Excavator is excavating. [Achievement: Slippery One] 00607_ Acquired derelict log, extracted data. Data stored: Materials non-interactive machine intel. 00607_ Trooper 1a: "Hello LRC-V3. What is your command?" 00607_ Mercenary 1a: "Hello LRC-V3. What is your command?" 00607_ Trooper 1b: "Hello LRC-V3. What is your command?" 00634_ D-53 Grenadier destroyed. 00635_ Mercenary 1a destroyed. 00640_ Trooper 1b destroyed. 00640_ Trooper 1a destroyed. 00640_ Lgt. Ion Engine destroyed. 00640_ Flight Unit destroyed. 00642_ Sml. Laser destroyed. Map ----- +----------------------------------------------------+ | | | | | | | | | | | | | | | | | | | | | | | ?????????????????????????????????????????????????? | | ?????????????????????????????????????????????????? | | ???????????????????????????????????####??????????? | | ?????????????????????????????????## ##?????????? | | ?????????????????????????????????# #?????????? | | ????????????????????????#####????# #?????????? | | ???????????????####????## ##???# #?????????? | | ?###????#####?## ##???# ##?## #?????????? | | ?# ##???# #?# ##?## ### #?????????? | | ?# #????# ### ### #??????????? | | ?# #???## ######??????? | | ?# #?### %! #?# #??????? | | ## ### d =%% ##?# ###????? | | # ## ### # ##??# ##???? | | ##?## @ # #??## #???? | | #???## # #?## ###???? | | #???### #### #?# ##?????? | | ######??# ### ##??????? | | #??????## ## ##???????? | | ### #??##### ##????????? | | ## ## #??? #### ##?????????? | | #### #### #???## ##??????????? | | #### #??## #????# ######???????????? | | ## ###?## #????# ### ##????????????????? | | ##?## ## #????##??####?????????????????? | | #### #?# #?????????????????????????????? | | #??# #?????????????????????????????? | | #???##?????????????????????????????? | | ####??????????????????????????????????? | | #?????????????????????????????????????? | | ## ##????????????????????????????????????? | | ### #####????????????????????????????????? | | ##?# % #????????????????????????????????? | | ##??# |! #????????????????????????????????? | | ###??## %* #??????????????????????????????? | | ?????# ???????????????????????????? | | ?????# ???? ??????????????????????????? | | ?????# ##??????= ???????????????????????????? | | ?????# #??????????????????????????????????????? | +----------------------------------------------------+ Best States ------------- Heat Dissipation 25 Energy Generation 10 Energy Capacity 125 Matter Stores 300 Matter Capacity 300 Sight Range 16 Terrain Scan Density 10 Evasion (%) 62 Item Schematics ----------------- None Robot Schematics ------------------ None Fabricated ------------ Nothing Alien Tech Used ----------------- None Achievements -------------- Slippery One Challenges ------------ None Game ------ Seed PointAntimissileInitializer Manual? 0 Play Time 00:15:19 Cumulative 10.4 hours Start 2024.04.05 @ 20:52:00 End 2024.04.05 @ 21:05:00 Sessions 1 Manual Loads 0 Difficulty Rogue Special Mode None Game No. 13 Rogue 13 Adventurer 0 Explorer 0 Win Type - Total 0 Types 0/0/0/0/0/0/0/0/0 Lore% 2 Gallery% 15 Achievement% 11 Wizard Run 0 Options --------- Layout 1 ASCII 0 Keyboard 1 Movement Vi Keybinds 0 Fullscreen 1 Font 24/Terminus Map View 50x35 Zoom Use 0% Tactical HUD 1 Map Filters NONE Filters NONE Steam 1 RUN: 985589f6-5495-4bcf-ba19-067aa8415a5c